Department Family,Entity,Date Paid,Expense Type,Expenses Area,Supplier Name,Transaction Reference,Total,VAT Registration Number,Vlookup
Department of Health,Imperial College Healthcare NHS Trust,06/01/2023,Agency Consultant,Pathology,Reed Specialist Recruitment Ltd,55086,"247,509.12",Optional requirement only,0
Department of Health,Imperial College Healthcare NHS Trust,06/01/2023,Agency Nursing: Qualified,Div Of Med & Integrated Care,Reed Specialist Recruitment Ltd,4806617,"116,827.31",Optional requirement only,0
Department of Health,Imperial College Healthcare NHS Trust,06/01/2023,Agency Nursing: Qualified,Div Of Med & Integrated Care,Reed Specialist Recruitment Ltd,4812258,"77,334.03",Optional requirement only,0
Department of Health,Imperial College Healthcare NHS Trust,06/01/2023,Agency Nursing: Qualified,"Div Of Surg, Cardiov & Cancer",Reed Specialist Recruitment Ltd,4806617,"130,079.22",Optional requirement only,0
Department of Health,Imperial College Healthcare NHS Trust,06/01/2023,Agency Nursing: Qualified,"Div Of Surg, Cardiov & Cancer",Reed Specialist Recruitment Ltd,4812258,"83,564.04",Optional requirement only,0
Department of Health,Imperial College Healthcare NHS Trust,06/01/2023,Bldg/Eng Equip Maint/Rep,"Div Of Surg, Cardiov & Cancer",Conduct Services Ltd,4808895,"33,068.40",Optional requirement only,0
Department of Health,Imperial College Healthcare NHS Trust,06/01/2023,Blood Products,Pathology,Nhs Blood And Transplant,4802328,"166,973.52",Optional requirement only,0
Department of Health,Imperial College Healthcare NHS Trust,06/01/2023,Blood Products,Pathology,Nhs Blood And Transplant,4802329,"318,514.62",Optional requirement only,0
Department of Health,Imperial College Healthcare NHS Trust,06/01/2023,Blood Products,Pathology,Nhs Blood And Transplant,4802330,"72,203.89",Optional requirement only,0
Department of Health,Imperial College Healthcare NHS Trust,06/01/2023,Car Salary Sacrifice,Ichnt Balance Sheet,Tuskerdirect Ltd,4796044,"96,428.38",Optional requirement only,0
Department of Health,Imperial College Healthcare NHS Trust,06/01/2023,Computer Maintenance,Information & Comms Technology,Identity Experts Limited,4801185,"31,200.00",Optional requirement only,0
Department of Health,Imperial College Healthcare NHS Trust,06/01/2023,Computer Software/License,Div Of Women Cardiac Clin Sup & Sexual Health Serv,Clevermed Ltd,4784864,"52,971.84",Optional requirement only,0
Department of Health,Imperial College Healthcare NHS Trust,06/01/2023,Computer Software/License,Div Of Women Cardiac Clin Sup & Sexual Health Serv,Philips Electronics Uk Ltd,4806078,"296,012.10",Optional requirement only,0
Department of Health,Imperial College Healthcare NHS Trust,06/01/2023,Computer Software/License,Pathology,Clinisys Solutions Ltd,54864,"38,503.69",Optional requirement only,0
Department of Health,Imperial College Healthcare NHS Trust,06/01/2023,Contr Other External,Div Of Women Cardiac Clin Sup & Sexual Health Serv,Alliance Diagnostic Services Ltd,4812161,"37,200.00",Optional requirement only,0
Department of Health,Imperial College Healthcare NHS Trust,06/01/2023,Contr Other External,Estates Directorate,Cbre Managed Services Ltd,4799661,"827,301.18",Optional requirement only,0
Department of Health,Imperial College Healthcare NHS Trust,06/01/2023,Contr Refuse & Clin Waste,Estates Directorate,Grundon Waste Management Ltd,4803670,"40,337.00",Optional requirement only,0
Department of Health,Imperial College Healthcare NHS Trust,06/01/2023,Cy Auc -Addns-Bd Purchased,Capital Summary,Cuffe  Plc,4798895,"151,199.68",Optional requirement only,0
Department of Health,Imperial College Healthcare NHS Trust,06/01/2023,Cy Auc -Addns-Bd Purchased,Capital Summary,Cuffe  Plc,4812034,"441,180.00",Optional requirement only,0
Department of Health,Imperial College Healthcare NHS Trust,06/01/2023,Cy Auc -Addns-Bd Purchased,Capital Summary,Imaging Matters,4799684,"1,346,802.22",Optional requirement only,0
Department of Health,Imperial College Healthcare NHS Trust,06/01/2023,Cy Auc -Addns- It Eqpt-Addns,Capital Summary,Infratech Hardware Limited,4804461,"95,772.00",Optional requirement only,0
Department of Health,Imperial College Healthcare NHS Trust,06/01/2023,Cy Auc -Addns- P & M-Purchased,Capital Summary,Aquilant Endoscopy Ltd,4808969,"150,000.00",Optional requirement only,0
Department of Health,Imperial College Healthcare NHS Trust,06/01/2023,Cy Auc -Addns- P & M-Purchased,Capital Summary,Ge Healthcare Ltd,4806229,"167,328.00",Optional requirement only,0
Department of Health,Imperial College Healthcare NHS Trust,06/01/2023,Cy Auc -Addns- P & M-Purchased,Capital Summary,Olympus Keymed,4802793,"48,310.02",Optional requirement only,0
Department of Health,Imperial College Healthcare NHS Trust,06/01/2023,Cy Auc -Addns- P & M-Purchased,Capital Summary,Siemens Healthcare Ltd,4726204,"57,629.28",Optional requirement only,0
Department of Health,Imperial College Healthcare NHS Trust,06/01/2023,Cy Auc -Addns- P & M-Purchased,Capital Summary,Siemens Healthcare Ltd,4787549,"57,629.28",Optional requirement only,0
Department of Health,Imperial College Healthcare NHS Trust,06/01/2023,Cy Auc -Addns- P & M-Purchased,Capital Summary,Siemens Healthcare Ltd,4787551,"57,629.28",Optional requirement only,0
Department of Health,Imperial College Healthcare NHS Trust,06/01/2023,Dist Award - Nat Cea,Div Of Med & Integrated Care,Imperial College London,4807914,"71,153.04",Optional requirement only,0
Department of Health,Imperial College Healthcare NHS Trust,06/01/2023,Dist Award - Nat Cea,"Div Of Surg, Cardiov & Cancer",Imperial College London,4807914,"57,156.23",Optional requirement only,0
Department of Health,Imperial College Healthcare NHS Trust,06/01/2023,Dist Award - Nat Cea,Div Of Women Cardiac Clin Sup & Sexual Health Serv,Imperial College London,4807914,"40,060.50",Optional requirement only,0
Department of Health,Imperial College Healthcare NHS Trust,06/01/2023,Doctor In Training - Locum,Central Costs,Chelsea And  Westminster Hospital Nhs Ft,4774437,"159,186.77",Optional requirement only,0
Department of Health,Imperial College Healthcare NHS Trust,06/01/2023,Doctor In Training - Locum,Central Costs,Chelsea And  Westminster Hospital Nhs Ft,4774438,"350,184.96",Optional requirement only,0
Department of Health,Imperial College Healthcare NHS Trust,06/01/2023,Drugs Nhs,Div Of Women Cardiac Clin Sup & Sexual Health Serv,Nhs Business Services Authority,4806257,"33,042.61",Optional requirement only,0
Department of Health,Imperial College Healthcare NHS Trust,06/01/2023,Drugs Pbr Excluded,"Div Of Surg, Cardiov & Cancer",Healthcare At Home Ltd,4807524,"37,650.40",Optional requirement only,0
Department of Health,Imperial College Healthcare NHS Trust,06/01/2023,Drugs Pbr Excluded,"Div Of Surg, Cardiov & Cancer",Healthcare At Home Ltd,4807526,"30,150.70",Optional requirement only,0
Department of Health,Imperial College Healthcare NHS Trust,06/01/2023,Ext Contr Logistics,Div Of Women Cardiac Clin Sup & Sexual Health Serv,Eleanor Hospital Logistics Ltd,4806106,"57,302.81",Optional requirement only,0
Department of Health,Imperial College Healthcare NHS Trust,06/01/2023,Ext Contr Logistics,Finance Directorate,Eleanor Hospital Logistics Ltd,4796054,"205,951.12",Optional requirement only,0
Department of Health,Imperial College Healthcare NHS Trust,06/01/2023,Gas,Estates Directorate,Total Gas & Power Ltd,4810385,"346,987.82",Optional requirement only,0
Department of Health,Imperial College Healthcare NHS Trust,06/01/2023,Gas,Estates Directorate,Total Gas & Power Ltd,4810386,"206,667.34",Optional requirement only,0
Department of Health,Imperial College Healthcare NHS Trust,06/01/2023,Gas,Estates Directorate,Total Gas & Power Ltd,4810388,"164,401.54",Optional requirement only,0
Department of Health,Imperial College Healthcare NHS Trust,06/01/2023,Home Electronics Cr,Ichnt Balance Sheet,Northumbria Healthcare Nhs Foundation Trust,4797492,"25,231.97",Optional requirement only,0
Department of Health,Imperial College Healthcare NHS Trust,06/01/2023,Hopper Service,Estates Directorate,Dhl Supply Chain  (Former Excel),4795306,"40,329.65",Optional requirement only,0
Department of Health,Imperial College Healthcare NHS Trust,06/01/2023,Hospitality,Human Resources,Agiito,4812221,"186,712.80",Optional requirement only,0
Department of Health,Imperial College Healthcare NHS Trust,06/01/2023,Ic Pay Recharge In: Med,Div Of Med & Integrated Care,Imperial College London,4807914,"131,608.57",Optional requirement only,0
Department of Health,Imperial College Healthcare NHS Trust,06/01/2023,Ic Pay Recharge In: Med,Div Of Med & Integrated Care,Imperial College London,4807915,"27,129.32",Optional requirement only,0
Department of Health,Imperial College Healthcare NHS Trust,06/01/2023,Ic Pay Recharge In: Med,"Div Of Surg, Cardiov & Cancer",Imperial College London,4807914,"390,105.11",Optional requirement only,0
Department of Health,Imperial College Healthcare NHS Trust,06/01/2023,Ic Pay Recharge In: Med,"Div Of Surg, Cardiov & Cancer",Imperial College London,4807915,"65,390.63",Optional requirement only,0
Department of Health,Imperial College Healthcare NHS Trust,06/01/2023,Ic Pay Recharge In: Med,Div Of Women Cardiac Clin Sup & Sexual Health Serv,Imperial College London,4807914,"147,972.14",Optional requirement only,0
Department of Health,Imperial College Healthcare NHS Trust,06/01/2023,Ic Pay Recharge In: Med,Pathology,Imperial College London,4807929,"29,609.52",Optional requirement only,0
Department of Health,Imperial College Healthcare NHS Trust,06/01/2023,Jac - Stock,Balance Sheet St Marys,Alloga Uk Ltd,4806680,"81,360.00",Optional requirement only,Stock
Department of Health,Imperial College Healthcare NHS Trust,06/01/2023,Jac - Stock,Balance Sheet St Marys,Bayer Plc,4806639,"70,259.11",Optional requirement only,Stock
Department of Health,Imperial College Healthcare NHS Trust,06/01/2023,Jac - Stock,Balance Sheet St Marys,Bms Pharmaceuticals Ltd (0034),4806904,"43,766.10",Optional requirement only,Stock
Department of Health,Imperial College Healthcare NHS Trust,06/01/2023,Jac - Stock,Balance Sheet St Marys,Gilead Sciences Ltd,4806888,"35,504.78",Optional requirement only,Stock
Department of Health,Imperial College Healthcare NHS Trust,06/01/2023,Jac - Stock,Balance Sheet St Marys,Healthcare At Home Ltd,4811355,"37,299.00",Optional requirement only,Stock
Department of Health,Imperial College Healthcare NHS Trust,06/01/2023,Jac - Stock,Balance Sheet St Marys,Qualasept Ltd,4805596,"55,803.84",Optional requirement only,Stock
Department of Health,Imperial College Healthcare NHS Trust,06/01/2023,Jac - Stock,Balance Sheet St Marys,Roche Products Ltd,4805649,"31,457.95",Optional requirement only,Stock
Department of Health,Imperial College Healthcare NHS Trust,06/01/2023,Jac - Stock,Balance Sheet St Marys,Roche Products Ltd,4806940,"34,398.00",Optional requirement only,Stock
Department of Health,Imperial College Healthcare NHS Trust,06/01/2023,Laboratory Equipment,Pathology,Olm Diagnostics Ltd,55051,"38,930.78",Optional requirement only,0
Department of Health,Imperial College Healthcare NHS Trust,06/01/2023,Lease Charges,Information & Comms Technology,Xerox (Uk) Ltd,4802933,"30,108.46",Optional requirement only,0
Department of Health,Imperial College Healthcare NHS Trust,06/01/2023,Med & Surg Equip General,Div Of Women Cardiac Clin Sup & Sexual Health Serv,Lp Hcs Ltd,4791525,"3,896,347.06",Optional requirement only,0
Department of Health,Imperial College Healthcare NHS Trust,06/01/2023,Med & Surg Equip General,Div Of Women Cardiac Clin Sup & Sexual Health Serv,Lp Hcs Ltd,4798632,"3,276,629.46",Optional requirement only,0
Department of Health,Imperial College Healthcare NHS Trust,06/01/2023,Med & Surg Equip Leases,"Div Of Surg, Cardiov & Cancer",Tp Leasing Ltd,4775701,"53,670.58",Optional requirement only,0
Department of Health,Imperial College Healthcare NHS Trust,06/01/2023,Nhs Pay Recharge In: Clerical,Information & Comms Technology,London North West Univ Healthcare Nhs Trust,4770171,"100,000.00",Optional requirement only,0
Department of Health,Imperial College Healthcare NHS Trust,06/01/2023,Other Research Exp - Non-Pay,Rd Medical Directorate,London Ambulance Service Nhs Trust,4807470,"39,317.00",Optional requirement only,0
Department of Health,Imperial College Healthcare NHS Trust,06/01/2023,Other Transport Costs,Pathology,Dhl Supply Chain  (Former Excel),54922,"42,371.82",Optional requirement only,0
Department of Health,Imperial College Healthcare NHS Trust,06/01/2023,Patients Appl: Purchase,"Div Of Surg, Cardiov & Cancer",Blatchford Limited,4807502,"49,430.51",Optional requirement only,0
Department of Health,Imperial College Healthcare NHS Trust,06/01/2023,Printing Costs,Estates Directorate,Technical Initiatives Uk Ltd [Cs],4802702,"68,580.00",Optional requirement only,0
Department of Health,Imperial College Healthcare NHS Trust,06/01/2023,Professional Services,Estates Directorate,Knight Security Limited,4802193,"34,633.73",Optional requirement only,0
Department of Health,Imperial College Healthcare NHS Trust,06/01/2023,Purch Hcare Independent Sector,"Div Of Surg, Cardiov & Cancer",Genesiscare,4802450,"35,016.00",Optional requirement only,0
Department of Health,Imperial College Healthcare NHS Trust,06/01/2023,Rates,Estates Directorate,London Borough Hammersmith & Fulham,4808867,"185,313.00",Optional requirement only,0
Department of Health,Imperial College Healthcare NHS Trust,06/01/2023,Rates,Estates Directorate,London Borough Hammersmith & Fulham,4808868,"165,363.00",Optional requirement only,0
Department of Health,Imperial College Healthcare NHS Trust,06/01/2023,Season Ticket Cr Abellio,Ichnt Balance Sheet,Abellio Transport Holdings Ltd,4802353,"33,827.80",Optional requirement only,0
Department of Health,Imperial College Healthcare NHS Trust,06/01/2023,Season Ticket Cr Abellio,Ichnt Balance Sheet,Abellio Transport Holdings Ltd,4803654,"33,450.40",Optional requirement only,0
Department of Health,Imperial College Healthcare NHS Trust,06/01/2023,Srvcsrecd-Other Nhs,Pathology,Chelsea And  Westminster Hospital Nhs Ft,50779,"29,538.29",Optional requirement only,0
Department of Health,Imperial College Healthcare NHS Trust,06/01/2023,Supplies Issues Recharges,Ichnt Balance Sheet,Supply Chain Coordination Ltd (Sccl) ( 101),4799530,"101,126.88",Optional requirement only,Stock
Department of Health,Imperial College Healthcare NHS Trust,06/01/2023,Supplies Issues Recharges,Ichnt Balance Sheet,Supply Chain Coordination Ltd (Sccl) ( 101),4799531,"107,837.70",Optional requirement only,Stock
Department of Health,Imperial College Healthcare NHS Trust,06/01/2023,Supplies Issues Recharges,Ichnt Balance Sheet,Supply Chain Coordination Ltd (Sccl) ( 101),4799532,"100,189.57",Optional requirement only,Stock
Department of Health,Imperial College Healthcare NHS Trust,06/01/2023,Supplies Issues Recharges,Ichnt Balance Sheet,Supply Chain Coordination Ltd (Sccl) ( 101),4799533,"112,976.60",Optional requirement only,Stock
Department of Health,Imperial College Healthcare NHS Trust,06/01/2023,Supplies Issues Recharges,Ichnt Balance Sheet,Supply Chain Coordination Ltd (Sccl) ( 101),4799534,"91,826.26",Optional requirement only,Stock
Department of Health,Imperial College Healthcare NHS Trust,06/01/2023,Supplies Issues Recharges,Ichnt Balance Sheet,Supply Chain Coordination Ltd (Sccl) ( 101),4799535,"31,309.58",Optional requirement only,Stock
Department of Health,Imperial College Healthcare NHS Trust,06/01/2023,Supplies Issues Recharges,Ichnt Balance Sheet,Supply Chain Coordination Ltd (Sccl) ( 101),4802299,"95,152.74",Optional requirement only,Stock
Department of Health,Imperial College Healthcare NHS Trust,06/01/2023,Supplies Issues Recharges,Ichnt Balance Sheet,Supply Chain Coordination Ltd (Sccl) ( 101),4802300,"72,338.97",Optional requirement only,Stock
Department of Health,Imperial College Healthcare NHS Trust,06/01/2023,Supplies Issues Recharges,Ichnt Balance Sheet,Supply Chain Coordination Ltd (Sccl) ( 101),4802301,"105,682.70",Optional requirement only,Stock
Department of Health,Imperial College Healthcare NHS Trust,06/01/2023,Supplies Issues Recharges,Ichnt Balance Sheet,Supply Chain Coordination Ltd (Sccl) ( 101),4802302,"71,172.57",Optional requirement only,Stock
Department of Health,Imperial College Healthcare NHS Trust,06/01/2023,Supplies Issues Recharges,Ichnt Balance Sheet,Supply Chain Coordination Ltd (Sccl) ( 101),4802303,"36,949.53",Optional requirement only,Stock
Department of Health,Imperial College Healthcare NHS Trust,06/01/2023,Supplies Issues Recharges,Ichnt Balance Sheet,Supply Chain Coordination Ltd (Sccl) ( 101),4802304,"112,282.06",Optional requirement only,Stock
Department of Health,Imperial College Healthcare NHS Trust,06/01/2023,Supplies Issues Recharges,Ichnt Balance Sheet,Supply Chain Coordination Ltd (Sccl) ( 101),4806060,"120,400.06",Optional requirement only,Stock
Department of Health,Imperial College Healthcare NHS Trust,06/01/2023,Supplies Issues Recharges,Ichnt Balance Sheet,Supply Chain Coordination Ltd (Sccl) ( 101),4806061,"157,175.75",Optional requirement only,Stock
Department of Health,Imperial College Healthcare NHS Trust,06/01/2023,Supplies Issues Recharges,Ichnt Balance Sheet,Supply Chain Coordination Ltd (Sccl) ( 101),4806062,"114,342.19",Optional requirement only,Stock
Department of Health,Imperial College Healthcare NHS Trust,06/01/2023,Supplies Issues Recharges,Ichnt Balance Sheet,Supply Chain Coordination Ltd (Sccl) ( 101),4806063,"129,133.59",Optional requirement only,Stock
Department of Health,Imperial College Healthcare NHS Trust,06/01/2023,Supplies Issues Recharges,Ichnt Balance Sheet,Supply Chain Coordination Ltd (Sccl) ( 101),4806064,"56,675.45",Optional requirement only,Stock
Department of Health,Imperial College Healthcare NHS Trust,06/01/2023,Supplies Issues Recharges,Ichnt Balance Sheet,Supply Chain Coordination Ltd (Sccl) ( 101),4806065,"113,976.08",Optional requirement only,Stock
Department of Health,Imperial College Healthcare NHS Trust,06/01/2023,Taxi & Other Vehicle Hire,Estates Directorate,Dhl Supply Chain  (Former Excel),4802567,"47,878.94",Optional requirement only,0
Department of Health,Imperial College Healthcare NHS Trust,06/01/2023,Taxi & Other Vehicle Hire,Estates Directorate,Dhl Supply Chain  (Former Excel),4802572,"70,070.86",Optional requirement only,0
Department of Health,Imperial College Healthcare NHS Trust,06/06/2023,Blood Products,Pathology,Nhs Blood And Transplant,4809485,"57,733.14",Optional requirement only,0
Department of Health,Imperial College Healthcare NHS Trust,06/06/2023,Blood Products,Pathology,Nhs Blood And Transplant,4809486,"36,096.82",Optional requirement only,0
Department of Health,Imperial College Healthcare NHS Trust,06/06/2023,Books  Journals & Subscr,Office Of Chief Executive,Imperial College London,4810373,"143,200.20",Optional requirement only,0
Department of Health,Imperial College Healthcare NHS Trust,06/06/2023,Computer Maintenance,Information & Comms Technology,Cdw Ltd,4809045,"77,880.00",Optional requirement only,0
Department of Health,Imperial College Healthcare NHS Trust,06/06/2023,Computer Software/License,Information & Comms Technology,Cdw Ltd,4812932,"68,232.05",Optional requirement only,0
Department of Health,Imperial College Healthcare NHS Trust,06/06/2023,Computer Software/License,Information & Comms Technology,Cerner Ltd,4813052,"349,664.64",Optional requirement only,0
Department of Health,Imperial College Healthcare NHS Trust,06/06/2023,Computer Software/License,Information & Comms Technology,Cerner Ltd,4813059,"62,784.86",Optional requirement only,0
Department of Health,Imperial College Healthcare NHS Trust,06/06/2023,Computer Software/License,Information & Comms Technology,Cerner Ltd,4813065,"47,088.66",Optional requirement only,0
Department of Health,Imperial College Healthcare NHS Trust,06/06/2023,Contr Other External,Div Of Women Cardiac Clin Sup & Sexual Health Serv,Alliance Medical Ltd,4803653,"80,750.40",Optional requirement only,0
Department of Health,Imperial College Healthcare NHS Trust,06/06/2023,Cy Auc -Addns-Bd Purchased,Capital Summary,Cuffe  Plc,4812456,"41,915.35",Optional requirement only,0
Department of Health,Imperial College Healthcare NHS Trust,06/06/2023,Cy Auc -Addns-Bd Purchased,Capital Summary,Cuffe  Plc,4812458,"30,078.14",Optional requirement only,0
Department of Health,Imperial College Healthcare NHS Trust,06/06/2023,Decontamination Services,Estates Directorate,Ihss Limited,4799767,"455,504.15",Optional requirement only,0
Department of Health,Imperial College Healthcare NHS Trust,06/06/2023,Hosting Service Expenses,Nhs Elect,People Star Ltd,4814232,"53,520.00",Optional requirement only,0
Department of Health,Imperial College Healthcare NHS Trust,06/06/2023,Ic Pay Recharge In: Med,Private Patients Directorate,Imperial College London,4810797,"66,562.85",Optional requirement only,0
Department of Health,Imperial College Healthcare NHS Trust,06/06/2023,Insurance Costs,Estates Directorate,Hsb Engineering Insurance Services Ltd,4812235,"72,260.40",Optional requirement only,0
Department of Health,Imperial College Healthcare NHS Trust,06/06/2023,Insurance Costs,Estates Directorate,Hsb Engineering Insurance Services Ltd,4812236,"65,171.51",Optional requirement only,0
Department of Health,Imperial College Healthcare NHS Trust,06/06/2023,Items Pending Investigation,Ichnt Balance Sheet,Cdw Ltd,4727103,"73,275.89",Optional requirement only,0
Department of Health,Imperial College Healthcare NHS Trust,06/06/2023,Jac - Stock,Balance Sheet St Marys,Alliance Healthcare (Distribution) Ltd,4814169,"67,804.79",Optional requirement only,Stock
Department of Health,Imperial College Healthcare NHS Trust,06/06/2023,Jac - Stock,Balance Sheet St Marys,Alloga Uk Ltd,4809524,"81,360.00",Optional requirement only,Stock
Department of Health,Imperial College Healthcare NHS Trust,06/06/2023,Jac - Stock,Balance Sheet St Marys,Alloga Uk Ltd,4813645,"81,360.00",Optional requirement only,Stock
Department of Health,Imperial College Healthcare NHS Trust,06/06/2023,Jac - Stock,Balance Sheet St Marys,Alloga Uk Ltd,4814065,"81,360.00",Optional requirement only,Stock
Department of Health,Imperial College Healthcare NHS Trust,06/06/2023,Jac - Stock,Balance Sheet St Marys,Gilead Sciences Ltd,4810104,"44,380.98",Optional requirement only,Stock
Department of Health,Imperial College Healthcare NHS Trust,06/06/2023,Jac - Stock,Balance Sheet St Marys,Qualasept Ltd,4810105,"66,347.15",Optional requirement only,Stock
Department of Health,Imperial College Healthcare NHS Trust,06/06/2023,Jac - Stock,Balance Sheet St Marys,Qualasept Ltd,4814098,"54,729.60",Optional requirement only,Stock
Department of Health,Imperial College Healthcare NHS Trust,06/06/2023,Jac - Stock,Balance Sheet St Marys,Roche Products Ltd,4805653,"204,854.40",Optional requirement only,Stock
Department of Health,Imperial College Healthcare NHS Trust,06/06/2023,Jac - Stock,Balance Sheet St Marys,Roche Products Ltd,4813729,"116,950.92",Optional requirement only,Stock
Department of Health,Imperial College Healthcare NHS Trust,06/06/2023,Jac - Stock,Balance Sheet St Marys,Roche Products Ltd,4814139,"136,500.00",Optional requirement only,Stock
Department of Health,Imperial College Healthcare NHS Trust,06/06/2023,Laboratory Equipment,Nwlp Capital Summary,Bio-Rad Laboratories Ltd,55205,"80,158.26",Optional requirement only,0
Department of Health,Imperial College Healthcare NHS Trust,06/06/2023,Laboratory Equipment,Nwlp Capital Summary,Carl Zeiss Ltd,55200,"46,516.37",Optional requirement only,0
Department of Health,Imperial College Healthcare NHS Trust,06/06/2023,Lease Rents,Div Of Med & Integrated Care,Hayes Cottage Renal Unit Ltd,4803630,"243,337.50",Optional requirement only,0
Department of Health,Imperial College Healthcare NHS Trust,06/06/2023,Med & Surg Equip Leases,Div Of Med & Integrated Care,De Lage Landen Leasing Limited,4783484,"34,236.30",Optional requirement only,0
Department of Health,Imperial College Healthcare NHS Trust,06/06/2023,Med & Surg Maint Contract,Estates Directorate,Ge Medical Systems Limited,4800445,"853,575.60",Optional requirement only,0
Department of Health,Imperial College Healthcare NHS Trust,06/06/2023,Nhs Pay Recharge In: Other,Medical Director Summary,London North West Univ Healthcare Nhs Trust,4750892,"40,203.34",Optional requirement only,0
Department of Health,Imperial College Healthcare NHS Trust,06/06/2023,Other Transport Costs,Pathology,Dhl Supply Chain  (Former Excel),55070,"84,467.90",Optional requirement only,0
Department of Health,Imperial College Healthcare NHS Trust,06/06/2023,Other Transport Costs,Pathology,Dhl Supply Chain  (Former Excel),55071,"39,907.87",Optional requirement only,0
Department of Health,Imperial College Healthcare NHS Trust,06/06/2023,Other Transport Costs,Pathology,Dhl Supply Chain  (Former Excel),55072,"158,666.04",Optional requirement only,0
Department of Health,Imperial College Healthcare NHS Trust,06/06/2023,Patients Appl: Purchase,"Div Of Surg, Cardiov & Cancer",Blatchford Limited,4812283,"50,941.94",Optional requirement only,0
Department of Health,Imperial College Healthcare NHS Trust,06/06/2023,Provisions,Estates Directorate,Brakes Bros Ltd,4810411,"198,015.32",Optional requirement only,0
Department of Health,Imperial College Healthcare NHS Trust,06/06/2023,Provisions,Estates Directorate,Brakes Bros Ltd,4813053,"246,032.61",Optional requirement only,0
Department of Health,Imperial College Healthcare NHS Trust,06/06/2023,Staffflow Suspense,Ichnt Balance Sheet,Globe Locums Ltd,4800531,"30,931.37",Optional requirement only,0
Department of Health,Imperial College Healthcare NHS Trust,06/08/2023,Blood Products,Pathology,Nhs Blood And Transplant,4813469,"31,278.24",Optional requirement only,0
Department of Health,Imperial College Healthcare NHS Trust,06/08/2023,Cy Auc -Addns-Bd Purchased,Capital Summary,Cuffe  Plc,4808813,"152,812.94",Optional requirement only,0
Department of Health,Imperial College Healthcare NHS Trust,06/08/2023,Cy Auc -Addns-Bd Purchased,Capital Summary,Cuffe  Plc,4812459,"552,566.33",Optional requirement only,0
Department of Health,Imperial College Healthcare NHS Trust,06/08/2023,Cy Auc -Addns- It Eqpt-Addns,Capital Summary,Cisco Systems Finance International,4814642,"286,381.46",Optional requirement only,0
Department of Health,Imperial College Healthcare NHS Trust,06/08/2023,Cy Auc -Addns- It Eqpt-Addns,Capital Summary,Fortrus Ltd,4811348,"120,960.00",Optional requirement only,0
Department of Health,Imperial College Healthcare NHS Trust,06/08/2023,Cy Auc -Addns- P & M-Purchased,Capital Summary,Draeger Medical Uk Ltd,4815691,"315,731.62",Optional requirement only,0
Department of Health,Imperial College Healthcare NHS Trust,06/08/2023,Cy Auc -Addns- P & M-Purchased,Capital Summary,Ge Medical Systems Limited,4806243,"364,784.89",Optional requirement only,0
Department of Health,Imperial College Healthcare NHS Trust,06/08/2023,Dialysers,Div Of Med & Integrated Care,Baxter Healthcare Ltd,4743964,"182,607.83",Optional requirement only,0
Department of Health,Imperial College Healthcare NHS Trust,06/08/2023,Dialysers,Div Of Med & Integrated Care,Baxter Healthcare Ltd,4764263,"102,842.40",Optional requirement only,0
Department of Health,Imperial College Healthcare NHS Trust,06/08/2023,Dialysers,Div Of Med & Integrated Care,Baxter Healthcare Ltd,4799760,"49,027.36",Optional requirement only,0
Department of Health,Imperial College Healthcare NHS Trust,06/08/2023,Dialysers,Div Of Med & Integrated Care,Baxter Healthcare Ltd,4799761,"169,335.60",Optional requirement only,0
Department of Health,Imperial College Healthcare NHS Trust,06/08/2023,Jac - Stock,Balance Sheet St Marys,Alloga Uk Ltd,4815430,"31,930.90",Optional requirement only,Stock
Department of Health,Imperial College Healthcare NHS Trust,06/08/2023,Jac - Stock,Balance Sheet St Marys,Bayer Plc,4815397,"83,033.50",Optional requirement only,Stock
Department of Health,Imperial College Healthcare NHS Trust,06/08/2023,Jac - Stock,Balance Sheet St Marys,Roche Products Ltd,4815510,"344,956.39",Optional requirement only,Stock
Department of Health,Imperial College Healthcare NHS Trust,06/09/2023,Audit Fees: External,Finance Directorate,Deloitte And Touche Llp,4818888,"464,400.00",Optional requirement only,0
Department of Health,Imperial College Healthcare NHS Trust,6/13/2023,Acton Housing Association,Ichnt Balance Sheet,A2dominion Housing Group Ltd,4818884,"354,037.25",Optional requirement only,Housing Deductions
Department of Health,Imperial College Healthcare NHS Trust,6/13/2023,Agency Consultant,Pathology,Reed Specialist Recruitment Ltd,55307,"36,966.79",Optional requirement only,0
Department of Health,Imperial College Healthcare NHS Trust,6/13/2023,Agency Nursing: Qualified,Div Of Med & Integrated Care,Reed Specialist Recruitment Ltd,4817942,"84,911.84",Optional requirement only,0
Department of Health,Imperial College Healthcare NHS Trust,6/13/2023,Agency Nursing: Qualified,"Div Of Surg, Cardiov & Cancer",Reed Specialist Recruitment Ltd,4817942,"62,962.82",Optional requirement only,0
Department of Health,Imperial College Healthcare NHS Trust,6/13/2023,Books  Journals & Subscr,Office Of Chief Executive,Care Quality Commission,4787836,"992,425.00",Optional requirement only,0
Department of Health,Imperial College Healthcare NHS Trust,6/13/2023,Computer Software/License,Estates Directorate,Avoira Ltd,4817102,"33,480.00",Optional requirement only,0
Department of Health,Imperial College Healthcare NHS Trust,6/13/2023,Cy Auc -Addns- P & M-Purchased,Capital Summary,Ge Medical Systems Limited,4778703,"42,029.54",Optional requirement only,0
Department of Health,Imperial College Healthcare NHS Trust,6/13/2023,Cy Auc -Addns- P & M-Purchased,Capital Summary,Ge Medical Systems Limited,4778704,"42,029.54",Optional requirement only,0
Department of Health,Imperial College Healthcare NHS Trust,6/13/2023,Cy Auc -Addns- P & M-Purchased,Capital Summary,Ge Medical Systems Limited,4778727,"42,029.54",Optional requirement only,0
Department of Health,Imperial College Healthcare NHS Trust,6/13/2023,Cy Auc -Addns- P & M-Purchased,Capital Summary,Ge Medical Systems Limited,4778731,"42,029.54",Optional requirement only,0
Department of Health,Imperial College Healthcare NHS Trust,6/13/2023,Cy Auc -Addns- P & M-Purchased,Capital Summary,Ge Medical Systems Limited,4778735,"42,029.54",Optional requirement only,0
Department of Health,Imperial College Healthcare NHS Trust,6/13/2023,Cy Auc -Addns- P & M-Purchased,Capital Summary,Philips Electronics Uk Ltd,4812171,"215,578.94",Optional requirement only,0
Department of Health,Imperial College Healthcare NHS Trust,6/13/2023,Cy Auc -Addns- P & M-Purchased,Capital Summary,Philips Electronics Uk Ltd,4812269,"69,610.98",Optional requirement only,0
Department of Health,Imperial College Healthcare NHS Trust,6/13/2023,Cy Auc -Addns- P & M-Purchased,Capital Summary,Philips Electronics Uk Ltd,4819685,"48,926.71",Optional requirement only,0
Department of Health,Imperial College Healthcare NHS Trust,6/13/2023,Cy Auc -Addns- P & M-Purchased,Capital Summary,Supply Chain Coordination Ltd (Sccl) ( 905),4817245,"56,664.68",Optional requirement only,0
Department of Health,Imperial College Healthcare NHS Trust,6/13/2023,Dialysers,Div Of Med & Integrated Care,Baxter Healthcare Ltd,4704257,"41,225.20",Optional requirement only,0
Department of Health,Imperial College Healthcare NHS Trust,6/13/2023,Dialysers,Div Of Med & Integrated Care,Baxter Healthcare Ltd,4704266,"61,617.20",Optional requirement only,0
Department of Health,Imperial College Healthcare NHS Trust,6/13/2023,Dialysers,Div Of Med & Integrated Care,Baxter Healthcare Ltd,4724593,"31,680.60",Optional requirement only,0
Department of Health,Imperial College Healthcare NHS Trust,6/13/2023,Dialysers,Div Of Med & Integrated Care,Baxter Healthcare Ltd,4743957,"43,746.81",Optional requirement only,0
Department of Health,Imperial College Healthcare NHS Trust,6/13/2023,Dialysers,Div Of Med & Integrated Care,Baxter Healthcare Ltd,4743960,"42,771.00",Optional requirement only,0
Department of Health,Imperial College Healthcare NHS Trust,6/13/2023,Dialysers,Div Of Med & Integrated Care,Baxter Healthcare Ltd,4743970,"37,643.80",Optional requirement only,0
Department of Health,Imperial College Healthcare NHS Trust,6/13/2023,Drugs Pbr Excluded,"Div Of Surg, Cardiov & Cancer",Healthcare At Home Ltd,4812047,"41,040.00",Optional requirement only,0
Department of Health,Imperial College Healthcare NHS Trust,6/13/2023,Engineering Contracts,Rd Surgery & Cancer Division,Accenture (Uk) Ltd,4816338,"129,906.72",Optional requirement only,0
Department of Health,Imperial College Healthcare NHS Trust,6/13/2023,Jac - Stock,Balance Sheet St Marys,Alexion Pharma Uk Ltd,4817827,"75,600.00",Optional requirement only,Stock
Department of Health,Imperial College Healthcare NHS Trust,6/13/2023,Jac - Stock,Balance Sheet St Marys,Gilead Sciences Ltd,4818674,"44,380.98",Optional requirement only,Stock
Department of Health,Imperial College Healthcare NHS Trust,6/13/2023,Jac - Stock,Balance Sheet St Marys,Janssen-Cilag Ltd,4817723,"44,048.40",Optional requirement only,Stock
Department of Health,Imperial College Healthcare NHS Trust,6/13/2023,Jac - Stock,Balance Sheet St Marys,Qualasept Ltd,4817807,"122,114.99",Optional requirement only,Stock
Department of Health,Imperial College Healthcare NHS Trust,6/13/2023,Lease Rents,Estates Directorate,London Borough Of Hammersmith/Fulham,4783695,"129,661.36",Optional requirement only,0
Department of Health,Imperial College Healthcare NHS Trust,6/13/2023,Med & Surg Equip General,"Div Of Surg, Cardiov & Cancer",Vanguard Healthcare Solutions Ltd,4819973,"37,035.60",Optional requirement only,0
Department of Health,Imperial College Healthcare NHS Trust,6/13/2023,Other Gen Supplies & Srv,Div Of Med & Integrated Care,University Hospital Southampton,4800043,"29,529.21",Optional requirement only,0
Department of Health,Imperial College Healthcare NHS Trust,6/13/2023,Purch Hcare Independent Sector,Div Of Med & Integrated Care,London Central & West Unscheduled Care Collab,4818615,"352,444.24",Optional requirement only,0
Department of Health,Imperial College Healthcare NHS Trust,6/13/2023,Recharge Out - Pay - Ic,Rdwomen And Children Division,Imperial College London,4800522,"110,573.12",Optional requirement only,0
Department of Health,Imperial College Healthcare NHS Trust,6/13/2023,Services Received - Nhsts,Pathology,University College London Hospitals Nhs Ft,4812805,"25,849.00",Optional requirement only,0
Department of Health,Imperial College Healthcare NHS Trust,6/13/2023,Thames Valley Housing Assoc,Ichnt Balance Sheet,Metropolitan Thames Valley,4818885,"113,315.57",Optional requirement only,Housing Deductions
Department of Health,Imperial College Healthcare NHS Trust,6/15/2023,Agency Consultant,Pathology,Reed Specialist Recruitment Ltd,55494,"30,585.84",Optional requirement only,0
Department of Health,Imperial College Healthcare NHS Trust,6/15/2023,Agency Nursing: Qualified,Div Of Med & Integrated Care,Reed Specialist Recruitment Ltd,4822303,"38,995.56",Optional requirement only,0
Department of Health,Imperial College Healthcare NHS Trust,6/15/2023,Agency Nursing: Qualified,"Div Of Surg, Cardiov & Cancer",Reed Specialist Recruitment Ltd,4822303,"69,178.80",Optional requirement only,0
Department of Health,Imperial College Healthcare NHS Trust,6/15/2023,Bldg/Eng Equip Maint/Rep,Estates Directorate,Cbre Managed Services Ltd,4822333,"318,381.61",Optional requirement only,0
Department of Health,Imperial College Healthcare NHS Trust,6/15/2023,Contr Refuse & Clin Waste,Estates Directorate,Grundon Waste Management Ltd,4815748,"39,165.22",Optional requirement only,0
Department of Health,Imperial College Healthcare NHS Trust,6/15/2023,Contr Refuse & Clin Waste,Estates Directorate,Grundon Waste Management Ltd,4815754,"42,097.97",Optional requirement only,0
Department of Health,Imperial College Healthcare NHS Trust,6/15/2023,Contr Refuse & Clin Waste,Estates Directorate,Grundon Waste Management Ltd,4815755,"43,629.32",Optional requirement only,0
Department of Health,Imperial College Healthcare NHS Trust,6/15/2023,Cy Auc -Addns-Bd Purchased,Capital Summary,Cbre Managed Services Ltd,4822333,"538,146.98",Optional requirement only,0
Department of Health,Imperial College Healthcare NHS Trust,6/15/2023,Cy Auc -Addns- It Eqpt-Addns,Capital Summary,Answer Digital Ltd,4821218,"74,880.00",Optional requirement only,0
Department of Health,Imperial College Healthcare NHS Trust,6/15/2023,Doctor In Training - Locum,Central Costs,London North West Univ Healthcare Nhs Trust,4781829,"280,212.39",Optional requirement only,0
Department of Health,Imperial College Healthcare NHS Trust,6/15/2023,Electricity,Estates Directorate,Edf Energy Customer Plc,4822290,"61,727.58",Optional requirement only,0
Department of Health,Imperial College Healthcare NHS Trust,6/15/2023,Electricity,Estates Directorate,Edf Energy Customer Plc,4822292,"438,220.51",Optional requirement only,0
Department of Health,Imperial College Healthcare NHS Trust,6/15/2023,Electricity,Estates Directorate,Edf Energy Customer Plc,4822293,"156,546.67",Optional requirement only,0
Department of Health,Imperial College Healthcare NHS Trust,6/15/2023,Electricity,Estates Directorate,Edf Energy Customer Plc,4822294,"56,243.89",Optional requirement only,0
Department of Health,Imperial College Healthcare NHS Trust,6/15/2023,Electricity,Estates Directorate,Edf Energy Customer Plc,4822297,"557,891.45",Optional requirement only,0
Department of Health,Imperial College Healthcare NHS Trust,6/15/2023,Ic Library Expenditure,Medical Director Summary,Imperial College London,4793923,"109,467.52",Optional requirement only,0
Department of Health,Imperial College Healthcare NHS Trust,6/15/2023,Isotopes,Div Of Women Cardiac Clin Sup & Sexual Health Serv,Curium Pharma Uk Ltd,4812304,"44,872.80",Optional requirement only,0
Department of Health,Imperial College Healthcare NHS Trust,6/15/2023,Jac - Stock,Balance Sheet St Marys,Biotest (Uk) Ltd,4820487,"86,713.20",Optional requirement only,Stock
Department of Health,Imperial College Healthcare NHS Trust,6/15/2023,Jac - Stock,Balance Sheet St Marys,Mawdsleys-Brooks & Co Ltd,4818911,"39,760.08",Optional requirement only,Stock
Department of Health,Imperial College Healthcare NHS Trust,6/15/2023,Jac - Stock,Balance Sheet St Marys,Mawdsleys-Brooks & Co Ltd,4818928,"40,792.32",Optional requirement only,Stock
Department of Health,Imperial College Healthcare NHS Trust,6/15/2023,Laboratory External Tests,Pathology,University College London Hospitals Nhs Ft,49510,"27,455.71",Optional requirement only,0
Department of Health,Imperial College Healthcare NHS Trust,6/15/2023,Med & Surg Equip General,"Div Of Surg, Cardiov & Cancer",Intuitive Surgical Ltd,4801632,"32,541.80",Optional requirement only,0
Department of Health,Imperial College Healthcare NHS Trust,6/15/2023,Minor Works,Div Of Women Cardiac Clin Sup & Sexual Health Serv,Cbre Managed Services Ltd,4822333,"49,091.08",Optional requirement only,0
Department of Health,Imperial College Healthcare NHS Trust,6/15/2023,Other Research Exp - Pay,Rd Medical Directorate,Imperial College London,4777174,"51,740.45",Optional requirement only,0
Department of Health,Imperial College Healthcare NHS Trust,6/15/2023,Other Research Exp - Pay,Rd Surgery & Cancer Division,Imperial College London,4791555,"125,845.04",Optional requirement only,0
Department of Health,Imperial College Healthcare NHS Trust,6/15/2023,Services Received - Nhsts,Div Of Med & Integrated Care,London North West Univ Healthcare Nhs Trust,4773621,"145,435.84",Optional requirement only,0
Department of Health,Imperial College Healthcare NHS Trust,6/15/2023,Services Received - Nhsts,Div Of Med & Integrated Care,London North West Univ Healthcare Nhs Trust,4773622,"157,018.24",Optional requirement only,0
Department of Health,Imperial College Healthcare NHS Trust,6/15/2023,Srvcsrecd-Other Nhs,Central Costs,London North West Univ Healthcare Nhs Trust,4553058,"41,493.25",Optional requirement only,0
Department of Health,Imperial College Healthcare NHS Trust,6/15/2023,Staff Recruitment Costs,Human Resources,King'S College Hospital Nhs Foundation Trust,4763464,"32,865.00",Optional requirement only,0
Department of Health,Imperial College Healthcare NHS Trust,6/15/2023,Staff Recruitment Costs,Human Resources,King'S College Hospital Nhs Foundation Trust,4763488,"30,320.00",Optional requirement only,0
Department of Health,Imperial College Healthcare NHS Trust,6/20/2023,Bldg/Eng Equip Maint/Rep,Estates Directorate,Cbre Managed Services Ltd,4823494,"245,243.06",Optional requirement only,0
Department of Health,Imperial College Healthcare NHS Trust,6/20/2023,Cleaning Materials,Estates Directorate,Synergy Health Managed Services Ltd,4825030,"59,767.36",Optional requirement only,0
Department of Health,Imperial College Healthcare NHS Trust,6/20/2023,Computer Software/License,"Div Of Surg, Cardiov & Cancer",Raysearch Laboratories Ab,4803628,"129,350.40",Optional requirement only,0
Department of Health,Imperial College Healthcare NHS Trust,6/20/2023,Computer Software/License,Information & Comms Technology,Cerner Ltd,4733676,"181,359.60",Optional requirement only,0
Department of Health,Imperial College Healthcare NHS Trust,6/20/2023,Computer Software/License,Information & Comms Technology,Cerner Ltd,4792037,"349,664.64",Optional requirement only,0
Department of Health,Imperial College Healthcare NHS Trust,6/20/2023,Computer Software/License,Medical Director Summary,Virtihealth Limited,4824544,"100,440.00",Optional requirement only,0
Department of Health,Imperial College Healthcare NHS Trust,6/20/2023,Cy Auc -Addns-Bd Purchased,Capital Summary,Cbre Managed Services Ltd,4823494,"549,236.51",Optional requirement only,0
Department of Health,Imperial College Healthcare NHS Trust,6/20/2023,Cy Auc -Addns-Bd Purchased,Capital Summary,Cbre Managed Services Ltd,4823507,"1,762,210.16",Optional requirement only,0
Department of Health,Imperial College Healthcare NHS Trust,6/20/2023,Cy Auc -Addns- It Eqpt-Addns,Capital Summary,Philips Electronics Uk Ltd,4821243,"49,422.38",Optional requirement only,0
Department of Health,Imperial College Healthcare NHS Trust,6/20/2023,Cy Auc -Addns- P & M-Purchased,Capital Summary,Supply Chain Coordination Ltd (Sccl) ( 905),4823628,"99,840.10",Optional requirement only,0
Department of Health,Imperial College Healthcare NHS Trust,6/20/2023,Dialysers,Div Of Med & Integrated Care,Baxter Healthcare Ltd,4799759,"33,003.80",Optional requirement only,0
Department of Health,Imperial College Healthcare NHS Trust,6/20/2023,Equip Maint Contracts,Estates Directorate,Cbre Managed Services Ltd,4822351,"38,990.10",Optional requirement only,0
Department of Health,Imperial College Healthcare NHS Trust,6/20/2023,Ext Contr Laundry,Estates Directorate,Synergy Health Managed Services Ltd,4825026,"96,438.68",Optional requirement only,0
Department of Health,Imperial College Healthcare NHS Trust,6/20/2023,Ext Contr Laundry,Estates Directorate,Synergy Health Managed Services Ltd,4825028,"85,319.66",Optional requirement only,0
Department of Health,Imperial College Healthcare NHS Trust,6/20/2023,Ext Contr Laundry,Estates Directorate,Synergy Health Managed Services Ltd,4825029,"82,593.19",Optional requirement only,0
Department of Health,Imperial College Healthcare NHS Trust,6/20/2023,Ext Contr Logistics,Div Of Women Cardiac Clin Sup & Sexual Health Serv,Eleanor Hospital Logistics Ltd,4825054,"63,258.43",Optional requirement only,0
Department of Health,Imperial College Healthcare NHS Trust,6/20/2023,Gas,Estates Directorate,Total Gas & Power Ltd,4823459,"38,745.99",Optional requirement only,0
Department of Health,Imperial College Healthcare NHS Trust,6/20/2023,Gas,Estates Directorate,Total Gas & Power Ltd,4823462,"222,029.17",Optional requirement only,0
Department of Health,Imperial College Healthcare NHS Trust,6/20/2023,Gas,Estates Directorate,Total Gas & Power Ltd,4823464,"82,110.24",Optional requirement only,0
Department of Health,Imperial College Healthcare NHS Trust,6/20/2023,Gas,Estates Directorate,Total Gas & Power Ltd,4823465,"94,840.38",Optional requirement only,0
Department of Health,Imperial College Healthcare NHS Trust,6/20/2023,Ic Pay Recharge In: Med,Private Patients Directorate,Imperial College Of Science Tech And Medicine,4800559,"35,517.62",Optional requirement only,0
Department of Health,Imperial College Healthcare NHS Trust,6/20/2023,Ic Pay Recharge In: Med,Private Patients Directorate,Imperial College Of Science Tech And Medicine,4812061,"38,620.08",Optional requirement only,0
Department of Health,Imperial College Healthcare NHS Trust,6/20/2023,Income Tax Paye,Ichnt Balance Sheet,Hmrc Government Employers Account,4823088,"11,164,023.16",Optional requirement only,0
Department of Health,Imperial College Healthcare NHS Trust,6/20/2023,Income Tax Paye,Ichnt Balance Sheet,Hmrc Government Employers Account,4823094,"11,108,912.58",Optional requirement only,0
Department of Health,Imperial College Healthcare NHS Trust,6/20/2023,Jac - Stock,Balance Sheet St Marys,Bayer Plc,4820578,"45,622.80",Optional requirement only,Stock
Department of Health,Imperial College Healthcare NHS Trust,6/20/2023,Jac - Stock,Balance Sheet St Marys,Qualasept Ltd,4820615,"55,803.84",Optional requirement only,Stock
Department of Health,Imperial College Healthcare NHS Trust,6/20/2023,Jac - Stock,Balance Sheet St Marys,Qualasept Ltd,4820618,"55,367.94",Optional requirement only,Stock
Department of Health,Imperial College Healthcare NHS Trust,6/20/2023,Jac - Stock,Balance Sheet St Marys,Qualasept Ltd,4820619,"31,111.81",Optional requirement only,Stock
Department of Health,Imperial College Healthcare NHS Trust,6/20/2023,Jac - Stock,Balance Sheet St Marys,Roche Products Ltd,4818436,"577,751.40",Optional requirement only,Stock
Department of Health,Imperial College Healthcare NHS Trust,6/20/2023,Jac - Stock,Balance Sheet St Marys,Roche Products Ltd,4820704,"53,971.15",Optional requirement only,Stock
Department of Health,Imperial College Healthcare NHS Trust,6/20/2023,Jac - Stock,Balance Sheet St Marys,Roche Products Ltd,4824753,"43,134.00",Optional requirement only,Stock
Department of Health,Imperial College Healthcare NHS Trust,6/20/2023,Jac - Stock,Balance Sheet St Marys,Roche Products Ltd,4824754,"69,888.00",Optional requirement only,Stock
Department of Health,Imperial College Healthcare NHS Trust,6/20/2023,Laboratory Equipment,Pathology,Olm Diagnostics Ltd,55578,"38,319.71",Optional requirement only,0
Department of Health,Imperial College Healthcare NHS Trust,6/20/2023,Minor Works,"Div Of Surg, Cardiov & Cancer",Cbre Managed Services Ltd,4823507,"54,977.45",Optional requirement only,0
Department of Health,Imperial College Healthcare NHS Trust,6/20/2023,Other Research Exp - Pay,Rd Medical Directorate,Imperial College Of Science Tech And Medicine,4799722,"51,509.31",Optional requirement only,0
Department of Health,Imperial College Healthcare NHS Trust,6/20/2023,Other Research Exp - Pay,Rd Surgery & Cancer Division,Imperial College Of Science Tech And Medicine,4800334,"74,176.22",Optional requirement only,0
Department of Health,Imperial College Healthcare NHS Trust,6/20/2023,Other Research Exp - Pay,Rd Surgery & Cancer Division,Imperial College Of Science Tech And Medicine,4819828,"50,000.00",Optional requirement only,0
Department of Health,Imperial College Healthcare NHS Trust,6/20/2023,Other Transport Costs,Pathology,Dhl Supply Chain  (Former Excel),55544,"45,242.59",Optional requirement only,0
Department of Health,Imperial College Healthcare NHS Trust,6/20/2023,Postage & Carriage,Estates Directorate,Francotyp-Postalia Uk Limited T/A Teleset,4824332,"28,000.00",Optional requirement only,0
Department of Health,Imperial College Healthcare NHS Trust,6/20/2023,Professional Services,Estates Directorate,Knight Security Limited,4819650,"36,753.24",Optional requirement only,0
Department of Health,Imperial College Healthcare NHS Trust,6/20/2023,Purch Hcare Independent Sector,Div Of Med & Integrated Care,Mimet House,4802200,"144,274.90",Optional requirement only,0
Department of Health,Imperial College Healthcare NHS Trust,6/20/2023,Rent,Estates Directorate,Metropolitan Thames Valley,4824528,"58,223.40",Optional requirement only,0
Department of Health,Imperial College Healthcare NHS Trust,6/22/2023,Agency Consultant,Pathology,Reed Specialist Recruitment Ltd,55629,"92,839.86",Optional requirement only,0
Department of Health,Imperial College Healthcare NHS Trust,6/22/2023,Agency Nursing: Qualified,Div Of Med & Integrated Care,Reed Specialist Recruitment Ltd,4826934,"188,547.22",Optional requirement only,0
Department of Health,Imperial College Healthcare NHS Trust,6/22/2023,Agency Nursing: Qualified,"Div Of Surg, Cardiov & Cancer",Reed Specialist Recruitment Ltd,4826934,"109,887.89",Optional requirement only,0
Department of Health,Imperial College Healthcare NHS Trust,6/22/2023,Clinical Managed Service Contr,Pathology,Chelsea And  Westminster Hospital Nhs Ft,54883,"33,829.39",Optional requirement only,0
Department of Health,Imperial College Healthcare NHS Trust,6/22/2023,Clinical Managed Service Contr,Pathology,The Hillingdon Hospital Nhs Foundation Trust,4777213,"245,286.00",Optional requirement only,0
Department of Health,Imperial College Healthcare NHS Trust,6/22/2023,Clinical Managed Service Contr,Pathology,The Hillingdon Hospital Nhs Foundation Trust,54081,"245,286.00",Optional requirement only,0
Department of Health,Imperial College Healthcare NHS Trust,6/22/2023,Cnst Contributions,Central Costs,Nhs Resolution,4827290,"4,086,847.70",Optional requirement only,0
Department of Health,Imperial College Healthcare NHS Trust,6/22/2023,Computer Software/License,Information & Comms Technology,Cerner Ltd,4792030,"121,601.03",Optional requirement only,0
Department of Health,Imperial College Healthcare NHS Trust,6/22/2023,Contr Other External,Estates Directorate,Cbre Managed Services Ltd,4822352,"827,301.18",Optional requirement only,0
Department of Health,Imperial College Healthcare NHS Trust,6/22/2023,Cy Auc -Addns-Bd Purchased,Capital Summary,Cuffe  Plc,4827346,"1,025,920.20",Optional requirement only,0
Department of Health,Imperial College Healthcare NHS Trust,6/22/2023,Ext Contract - Patient Travel,Estates Directorate,Falck Uk Ambulance Service Limited,4812787,"1,829,237.12",Optional requirement only,0
Department of Health,Imperial College Healthcare NHS Trust,6/22/2023,Hopper Service,Estates Directorate,Dhl Supply Chain  (Former Excel),4812017,"40,329.65",Optional requirement only,0
Department of Health,Imperial College Healthcare NHS Trust,6/22/2023,Hospitality,Human Resources,Agiito,4807992,"114,951.20",Optional requirement only,0
Department of Health,Imperial College Healthcare NHS Trust,6/22/2023,Insurance Costs,Office Of Chief Executive,Nhs Resolution,4827290,"45,760.70",Optional requirement only,0
Department of Health,Imperial College Healthcare NHS Trust,6/22/2023,Jac - Stock,Balance Sheet St Marys,Alloga Uk Ltd,4826993,"39,936.00",Optional requirement only,Stock
Department of Health,Imperial College Healthcare NHS Trust,6/22/2023,Jac - Stock,Balance Sheet St Marys,Bayer Plc,4826977,"127,287.61",Optional requirement only,Stock
Department of Health,Imperial College Healthcare NHS Trust,6/22/2023,Med & Surg Maint Contract,Estates Directorate,Ge Medical Systems Limited,4813358,"827,313.60",Optional requirement only,0
Department of Health,Imperial College Healthcare NHS Trust,6/22/2023,Rates,Estates Directorate,City Of Westminster,4827297,"197,372.00",Optional requirement only,0
Department of Health,Imperial College Healthcare NHS Trust,6/22/2023,Rates,Estates Directorate,London Borough Hammersmith & Fulham,4827294,"185,313.00",Optional requirement only,0
Department of Health,Imperial College Healthcare NHS Trust,6/22/2023,Rates,Estates Directorate,London Borough Hammersmith & Fulham,4827295,"165,363.00",Optional requirement only,0
Department of Health,Imperial College Healthcare NHS Trust,6/22/2023,Water,Estates Directorate,Castle Water Ltd,4826940,"36,785.09",Optional requirement only,0
Department of Health,Imperial College Healthcare NHS Trust,6/22/2023,Water,Estates Directorate,Castle Water Ltd,4826943,"31,903.53",Optional requirement only,0
Department of Health,Imperial College Healthcare NHS Trust,6/22/2023,Water,Estates Directorate,Castle Water Ltd,4826945,"114,406.73",Optional requirement only,0
Department of Health,Imperial College Healthcare NHS Trust,6/26/2023,Contr Other External,Div Of Women Cardiac Clin Sup & Sexual Health Serv,Alliance Medical Ltd,4812093,"89,251.20",Optional requirement only,0
Department of Health,Imperial College Healthcare NHS Trust,6/26/2023,Drugs Pbr Excluded,"Div Of Surg, Cardiov & Cancer",Healthcare At Home Ltd,4828006,"26,399.70",Optional requirement only,0
Department of Health,Imperial College Healthcare NHS Trust,6/26/2023,Engineering Contracts,Rd Surgery & Cancer Division,Accenture (Uk) Ltd,4798646,"122,804.40",Optional requirement only,0
Department of Health,Imperial College Healthcare NHS Trust,6/26/2023,Engineering Contracts,Rd Surgery & Cancer Division,Accenture (Uk) Ltd,4825112,"49,136.84",Optional requirement only,0
Department of Health,Imperial College Healthcare NHS Trust,6/26/2023,Jac - Stock,Balance Sheet St Marys,Alloga Uk Ltd,4828411,"97,632.00",Optional requirement only,Stock
Department of Health,Imperial College Healthcare NHS Trust,6/26/2023,Jac - Stock,Balance Sheet St Marys,Polar Speed Distribution Ltd,4826883,"53,298.00",Optional requirement only,Stock
Department of Health,Imperial College Healthcare NHS Trust,6/26/2023,Jac - Stock,Balance Sheet St Marys,Polar Speed Distribution Ltd,4826885,"26,649.00",Optional requirement only,Stock
Department of Health,Imperial College Healthcare NHS Trust,6/26/2023,Jac - Stock,Balance Sheet St Marys,Polar Speed Distribution Ltd,4826887,"53,298.00",Optional requirement only,Stock
Department of Health,Imperial College Healthcare NHS Trust,6/26/2023,Patients Appl: Purchase,"Div Of Surg, Cardiov & Cancer",Blatchford Limited,4828109,"43,901.42",Optional requirement only,0
Department of Health,Imperial College Healthcare NHS Trust,6/26/2023,Purch Hcare Independent Sector,"Div Of Surg, Cardiov & Cancer",Mimet House,4827688,"170,506.70",Optional requirement only,0
,,,,,,Sum:,"73,603,835.82",,0
,,,,,Count:,272,,,0
